Cogmind - Beta 16.1 @@@ ROGUE MODE // 2026.04.02 @ 13:50:31 Player: buwwet Result: Destroyed by WS-K5V(R) with Subdweller Shrapnel Launcher Performance ------------- Evolutions (0) 0 Regions Visited (2) 400 Robots Destroyed (11) 55 Value Destroyed (228) 228 Prototype IDs (0) 0 Alien Tech Used (0) 0 Bonus (0) 0 TOTAL SCORE: 683 Bonus ------- None Cogmind --------- Core Integrity 0/250 Matter 272/300 Energy 250/250 System Corruption 0% Temperature Cool (0) Movement Walking (190) Ox1 Location -10/Subcaves Parts ------- > --- POWER (1) -------- Ion Engine > --- PROPULSION (2) --- Aluminum Leg Aluminum Leg > --- UTILITY (2) ------ Large Storage Unit Subdweller Optics > --- WEAPON (2) ------- Assault Rifle Battle Cannon > --- INVENTORY (15) --- Compact Wheel Heat Sink Large Matter Pod (36) Sensor Array Signal Interpreter Transport Network Coupler Targeting Computer Hacking Suite Particle Cannon Particle Cannon Mining Laser Scrap Shield Fragment (46) Peak State ------------ > --- POWER ------------ Ion Engine > --- PROPULSION ------- Light Treads Wheel > --- UTILITY ---------- Large Storage Unit Shield Generator > --- WEAPON ----------- Particle Cannon Particle Cannon > --- INVENTORY -------- Ion Engine Aluminum Leg Aluminum Leg Compact Wheel Heat Sink Large Matter Pod Sensor Array Signal Interpreter Transport Network Coupler Targeting Computer Medium Laser Small Laser Light Assault Rifle [Rating: 11] Favorites ----------- Power Ion Engine Engine Ion Engine Propulsion Light Treads Treads Light Treads Leg Aluminum Leg Wheel Wheel Utility Large Storage Unit Device Shield Generator Storage Large Storage Unit Weapon Particle Cannon Energy Gun Medium Laser Energy Cannon Particle Cannon Ballistic Gun Light Assault Rifle Ballistic Cannon Battle Cannon Build | -11 -10 -10 ------- Run | Yrd Mat Sub Slots Evolved . | . . . Power . | . . . Propulsion . | . . . Utility . | . . . Weapon . | . . . Parts Attached 22 | 6 8 8 Power 4 | 1 2 1 Engine 4 | 1 2 1 Core . | . . . Reactor . | . . . Propulsion 5 | 2 1 2 Treads 2 | 2 . . Leg 2 | . . 2 Wheel 1 | . 1 . Hover . | . . . Flight . | . . . Utility 6 | 1 2 3 Device 3 | . 1 2 Storage 3 | 1 1 1 Processor . | . . . Hackware . | . . . Protection . | . . . Artifact . | . . . Weapon 7 | 2 3 2 Energy Gun 1 | 1 . . Energy Cannon 2 | . 2 . Ballistic Gun 3 | 1 1 1 Ballistic Cannon 1 | . . 1 Launcher . | . . . Special Weapon . | . . . Impact Weapon . | . . . Slashing Weapon . | . . . Piercing Weapon . | . . . Special Melee Weapon . | . . . Unidentified Prototypes . | . . . Parts Lost 3 | . . 3 Power . | . . . Propulsion 2 | . . 2 Utility 1 | . . 1 Weapon . | . . . Highest Loss Streak 3 | . . 3 To Critical Strikes . | . . . Average Backups 9 | 2 9 12 Power . | . . . Propulsion 2 | 1 3 1 Utility 3 | . 3 6 Weapon 2 | . 2 2 Tool/Special . | . . . Unused Backups 9 | . 2 7 Power . | . . . Propulsion 1 | . . 1 Utility 5 | . . 5 Weapon 3 | . 2 1 Tool/Special . | . . . Average Slot Usage (%) 87 | . 84 97 Engine 11 | . 10 14 Treads 14 | . 17 4 Leg 3 | . . 15 Wheel 8 | . 9 6 Device 8 | . 6 12 Storage 14 | . 14 14 Energy Gun 3 | . 4 . Energy Cannon 8 | . 6 16 Ballistic Gun 12 | . 14 7 Peak Build Rating 11 | 6 11 11 Average Rating 7 | 4 7 10 On Entrance 5 | . 6 11 Avg Prop Armor Cover (%) 13 | . 14 11 Naked Turns . | . . . Heaviest Build 35 | 12 35 35 Greatest Support 40 | 40 40 20 Greatest Overweight (x) 6 | . 6 3 Average Overweight (x) 1 | . 1 1 Largest Inventory Capacity 15 | 8 15 15 Average Capacity 13 | 7 14 15 Most Carried 15 | 6 15 14 Average Carried 9 | 2 9 12 Final Capacity 15 | 8 15 15 Final Carried 13 | 6 13 12 Class Distribution -------------------- 100% | Mutant Dominant Class ---------------- Mutant | -10/Materials Mutant | -10/Subcaves Resources | -11 -10 -10 ----------- Run | Yrd Mat Sub Matter Collected 482 | 218 170 94 Remotely . | . . . Salvage Created 294 | . 200 94 Parts 17 | . 15 2 Haulers Intercepted 1 | . 1 . Recyclers Shooed 1 | . 1 . Parts Field Recycled . | . . . Retrieved Matter . | . . . Parts Self-Destructed . | . . . Prevented . | . . . Parts Restored . | . . . Kills | -11 -10 -10 ------- Run | Yrd Mat Sub Combat Hostiles Destroyed 7 | . 5 2 Guns 6 | . 5 1 Cannons 1 | . . 1 Classes Destroyed 6 | . 5 1 Hauler 1 | . 1 . Operator 1 | . 1 . Watcher 2 | . 2 . Swarmer 3 | . 3 . Grunt 2 | . 2 . Subdweller 2 | . . 2 Best Kill Streak 2 | . 2 1 Combat Bots Only 2 | . 2 1 Max Kills in Single Turn 1 | . 1 1 Gunslinging . | . . . Exploded . | . . . Melee . | . . . Uniques/NPCs Destroyed . | . . . Combat | -11 -10 -10 -------- Run | Yrd Mat Sub Hostile Shots Fired 70 | . 48 22 Missed 15 | . 13 2 Hits 55 | . 35 20 Projectile 55 | . 35 20 AOE 2 | . . 2 Critical Strikes 1 | . . 1 Damage Taken 801 | . 271 530 Core 254 | . 90 164 Absorbed by Shields 118 | . 55 63 Core Remaining (%) 100 | 100 . . Volleys Fired 38 | . 30 8 Largest 2 | . 2 2 Hottest 136 | . 136 136 Shots Fired 59 | . 43 16 Gun 41 | . 39 2 Cannon 18 | . 4 14 Launcher . | . . . Special . | . . . Kinetic 32 | . 29 3 Thermal 27 | . 14 13 Explosive . | . . . Electromagnetic . | . . . Robot Hit Streak 10 | . 5 10 Robot Miss Streak 3 | . 3 1 Penetration Max . | . . . Secondary Targets . | . . . Shots Hit Robots 41 | . 28 13 Core Hits 18 | . 14 4 Critical Kills . | . . . Critical Parts Destroyed . | . . . Critical Strikes . | . . . Melee Attacks . | . . . Impact . | . . . Slashing . | . . . Piercing . | . . . Sneak Attacks . | . . . Combat Hostiles . | . . . Follow-up Attacks . | . . . Damage Inflicted 534 | 2 288 244 Guns 267 | . 247 20 Cannons 265 | . 41 224 Explosions . | . . . Melee . | . . . Ramming 2 | 2 . . Kinetic 167 | . 147 20 Thermal 365 | . 141 224 Explosive . | . . . Electromagnetic . | . . . Impact . | . . . Slashing . | . . . Piercing . | . . . Highest Corruption . | . . . Average Corruption . | . . . Corruption Purged . | . . . Corruption Blocked . | . . . Overload Shots . | . . . Overflow Damage . | . . . Projectiles . | . . . Explosions . | . . . Melee . | . . . Knockbacks . | . . . Impact . | . . . Kinetic . | . . . Secondary . | . . . Self-Inflicted Damage . | . . . Shots . | . . . Rammed 1 | 1 . . Targets Rammed 1 | 1 . . Kicked . | . . . Crushed . | . . . Highest Temperature 279 | . 75 279 Average Temperature 59 | . 27 111 Received Heat Transfer 369 | . 54 315 Siege Activations . | . . . Martial Activations . | . . . Shielding Activations . | . . . Robots Disrupted . | . . . Combat Hostiles . | . . . Robots Corrupted . | . . . Combat Hostiles . | . . . Parts Fried . | . . . Impact Corruptions . | . . . Robots Melted . | . . . Combat Hostiles . | . . . Parts Melted . | . . . Heat Transferred 777 | . 370 407 Parts Sabotaged . | . . . Parts Stolen . | . . . Parts Stripped . | . . . Power Chain Reactions . | . . . Alert | -11 -10 -10 ------- Run | Yrd Mat Sub Maximum Alert Level . | . . . Low Security (%) 100 | 100 100 . Level 1 . | . . . Level 2 . | . . . Level 3 . | . . . Level 4 . | . . . Level 5 . | . . . High Security . | . . . Max Security . | . . . Peak Influence 112 | . 112 . Initial . | . . . Average 26 | . 30 . Influence Increases 185 | . 185 . Destroy 0b10 Robot/C 100 | . 100 . Destroy 0b10 Robot/NC 20 | . 20 . Destroy Leader 26 | . 26 . Successful Hack 9 | . 9 . Partial Spotted 15 | . 15 . Lose Combat Pursuer 15 | . 15 . Influence Decreases 185 | . 185 . Time Decay 126 | . 126 . Purge Threat 59 | . 59 . Squads Dispatched 1 | . 1 . Investigation . | . . . Extermination . | . . . Reinforcement 1 | . 1 . Assault . | . . . Garrison . | . . . Intercept . | . . . Searches Triggered . | . . . Construction Impeded . | . . . Haulers Reinforced . | . . . Active Scanning Responses . | . . . Cargo Convoy Interrupts . | . . . Stealth | -11 -10 -10 --------- Run | Yrd Mat Sub Distress Signals . | . . . Communications Jammed . | . . . Distress Signals . | . . . Times Spotted 15 | . 11 4 Peak Tracking Total 4 | . 4 2 Tactical Retreats 1 | . 1 . Traps | -11 -10 -10 ------- Run | Yrd Mat Sub Traps Triggered 2 | . 2 . Indirectly . | . . . Trap Hack Attempts . | . . . Triggered . | . . . Disarmed . | . . . Reprogrammed . | . . . Reused . | . . . Traps Extracted . | . . . Installed . | . . . Triggered . | . . . Machines | -11 -10 -10 ---------- Run | Yrd Mat Sub Machines Disabled . | . . . Max in Single Turn . | . . . Machines Repaired . | . . . Machines Dismantled . | . . . Machines Sabotaged . | . . . Overloaded Fab Kills . | . . . Hacking | -11 -10 -10 --------- Run | Yrd Mat Sub Machines Accessed 4 | . 4 . Terminals 3 | . 3 . Fabricators . | . . . Repair Stations . | . . . Recycling Units 1 | . 1 . Scanalyzers . | . . . Garrison Access . | . . . Total Hacks 12 | . 12 . Successful 4 | . 4 . Failed 8 | . 8 . Catastrophic . | . . . Database Lockouts . | . . . Manual 6 | . 6 . Terminals 7 | . 7 . Fabricators . | . . . Repair Stations . | . . . Recycling Units 5 | . 5 . Scanalyzers . | . . . Garrison Access . | . . . Terminal Hacks 1 | . 1 . Unreport Threat 1 | . 1 . Fabricator Hacks . | . . . Repair Station Hacks . | . . . Recycling Unit Hacks 1 | . 1 . Report Inventory 1 | . 1 . Scanalyzer . | . . . Garrison Access Hacks . | . . . Unauthorized Hacks 2 | . 2 . Terminals 2 | . 2 . Botnet 2 | . 2 . Fabricators . | . . . Repair Stations . | . . . Recycling Units . | . . . Scanalyzers . | . . . Garrison Access . | . . . Data Cores Recovered . | . . . Used . | . . . Hacking Detections 4 | . 4 . Full Trace Events 1 | . 1 . Feedback Events . | . . . Feedback Blocked . | . . . Robot Schematics Acquired . | . . . Robots Built . | . . . Authchips . | . . . Time . | . . . Total Robot Build Rating . | . . . Part Schematics Acquired . | . . . Parts Built . | . . . Authchips . | . . . Time . | . . . Total Part Build Rating . | . . . Part Studies Acquired . | . . . Parts Repaired . | . . . Time . | . . . Parts Recycled . | . . . Recycled Matter . | . . . Retrieved Matter . | . . . Retrieved Components . | . . . Parts Scanalyzed . | . . . Part Schematics Acquired . | . . . Parts Damaged . | . . . Bothacking | -11 -10 -10 ------------ Run | Yrd Mat Sub Used RIF Installer . | . . . Robots Hacked . | . . . Non-combat . | . . . Combat . | . . . Robot Hacks Applied . | . . . Relay Couplers Released . | . . . Fabnet Peak Effective % . | . . . Robots Rewired . | . . . Allies Hacked . | . . . Hacks Repelled . | . . . Allies | -11 -10 -10 -------- Run | Yrd Mat Sub Total Allies . | . . . Largest Group . | . . . Highest-Rated Group . | . . . Highest-Rated Ally . | . . . Total Orders . | . . . Ally Attacks . | . . . Total Damage . | . . . Kills . | . . . Allies Corrupted . | . . . Allies Melted . | . . . Intel | -11 -10 -10 ------- Run | Yrd Mat Sub Active Infowar (turns) 95 | . . 95 Optics 90 | . . 90 Sensors 5 | . . 5 Robot Analysis Total . | . . . Derelict Logs Recovered . | . . . Drone Launches . | . . . Drone Recoveries . | . . . Exploration | -11 -10 -10 ------------- Run | Yrd Mat Sub Turns Passed 933 | 98 655 180 Spaces Moved 551 | 58 414 79 Core 11 | 9 2 . Treads 160 | 49 111 . Legs 43 | . . 43 Wheels 337 | . 301 36 Hover . | . . . Flight . | . . . Fastest Speed 50 | 50 110 125 Average Speed 134 | 142 128 160 Slowest Speed 350 | 160 350 190 Overloaded Moves . | . . . Propulsion Burnouts . | . . . Robots Hopped . | . . . Potential Cave-ins . | . . . Cave-ins Triggered . | . . . Exploration Rate (%) 22 | 4 51 12 Regions Visited 2 Branch Regions 1 Pre-discovered Areas . | . . . Known Exits Taken . | . . . Unknown Exits Taken 2 | 1 1 . Scrap Searched . | . . . Spaces Dug . | . . . Terrain Destroyed . | . . . Melee . | . . . Projectile . | . . . AOE . | . . . Terrain Rammed . | . . . Walls Destroyed . | . . . Machines Disabled . | . . . Actions | -11 -10 -10 --------- Run | Yrd Mat Sub Total 684 | 70 499 115 Wait 39 | . 25 14 Move 550 | 58 413 79 Hop . | . . . Pick Up 24 | 6 15 3 Fast Attach 8 | 6 2 . Attach 8 | . 4 4 Detach 1 | . . 1 Swap 9 | . 4 5 Drop 7 | . 6 1 Fire 38 | . 30 8 Melee . | . . . Ram . | . . . Kick . | . . . Crush . | . . . Escape Stasis . | . . . Rewire . | . . . Trap . | . . . Miscellaneous . | . . . Route ------- -11/Scrapyard -10/Materials (discovered 2 exits: [*Min] / [*Sub]) -10/Subcaves History --------- Turn | Location | Event 31 | -11/Scrapyard | Discovered new exit (range 15) 99 | -11/Scrapyard | Entered Materials 321 | -10/Materials | Build established: Mutant 579 | -10/Materials | Discovered new exit (range 15) 714 | -10/Materials | Discovered new exit (range 15) 754 | -10/Materials | Entered Subcaves 803 | -10/Subcaves | Core integrity fell below 50% 861 | -10/Subcaves | Lost 3 parts (2n1u) 933 | -10/Subcaves | Core integrity fell below 20% 934 | -10/Subcaves | Destroyed by WS-K5V(R) with Subdweller Shrapnel Launcher Last Messages --------------- 00804_ Subatomizers dissect the Disposable Heat Sink. 00806_ Lgt. Treads destroyed. 00828_ Shield Generator destroyed. 00830_ Wheel destroyed. 00838_ NR-GY1(R) destroyed. 00843_ Acquired Sub. Optics. 00845_ Acquired 40 matter. 00849_ Acquired Battle Cannon. 00861_ Subatomizers dissect the Disposable Heat Sink. 00869_ Acquired 54 matter. 00872_ Subatomizers dissect the Disposable Heat Sink. 00873_ Acquired Scrap Shield Fragment. 00877_ Dropped Ion Engine. 00886_ Subatomizers dissect the Disposable Heat Sink. 00911_ Subatomizers dissect the Ion Engine, destroying it. Map ----- +----------------------------------------------------+ | ?????????????????????????????????????????????????? | | ?????????????????????????????????????????????????? | | ?????????????????????????????????????????????????? | | ?????????????????????????????????????????????????? | | ?????????????????????????????????????????????????? | | ?????????????????????????????????????????????????? | | ?????????????????????????????????????????????????? | | ?????????????????????????????????????????????????? | | ?????????????????????????????????????????????????? | | ?????????????????????????????????????????????????? | | ?????????????????????????????????????????????????? | | ?????????????????????????????##??####????????????? | | ?????????????????###???????### ### ##???????????? | | ????????????????## ??????## ##??????????? | | ????????????????# ??????# ####???###?? | | ????????????????# #?????# ##?## ### | | ????????????????# ##?????# ### | | ????????????????# #??????# #?# ## | | ?????????????????# #??####?# #??# #?# | | ??????????????????# #### ### #?## ### | | ?????????????????## ;; ;## ### | | ???????????#?????# ### ! | | ??????????## ????# ;## & | | ??????????# ????# ;# ## ## ### | | ??????????# #???# ### ### #??# | | ???????????# #?## @ ### #?# ##??? | | ????????????# ## ;## ### #####???? | | ????????????# ;### #?## #??????? | | ????????????## ;;;##;##? #??# #??????? | | ?????????????# ###??##?? #??## ###?###? | | ????????????# R #???????? ##???## ### ## | | ???????????# R ##????????# ##????# # | | ???????????# ##?????????###?????##### # # # | | ???????????# # ??????????????????????###### | | ???????????# ??????????????????????????# # | | ???????????# ?????????????????????????# | | ???????????### ## # ?????????????????????????## | | ????????????? ? ?#??????????????????????????# | | ????????????## ?# ????????????????????????????## | | ?????????????# ?# ????????????????????????????# | | ?????????????#?? ????????????????????????????## | | ????????????????# ?????????????????????????????## | | ????????????????# ??????????????????????????????? | | ???????????????? ??????????????????????????????? | | ???????????????? ?????????????????????????????? | | ???????????????? #?????????????????????????????? | | ???????????????? ??????????????????????????????? | | ???????????????? ??????????????????????????????? | | ????????????????? ??????????????????????????????? | | ?????????????????????????????????????????????????? | +----------------------------------------------------+ Best States ------------- Heat Dissipation 25 Energy Generation 10 Energy Capacity 250 Matter Stores 300 Matter Capacity 450 Sight Range 21 Robot Scan Range 14 Terrain Scan Density 10 Evasion (%) 40 Recoil Reduction 2 Item Schematics ----------------- None Robot Schematics ------------------ None Fabricated ------------ Nothing Repaired ---------- Nothing Studied --------- None Alien Tech Used ----------------- None Achievements -------------- None Challenges ------------ None Game ------ Seed ArmoredFlightTorch Manual? 0 Play Time 00:10:05 Cumulative 46.2 hours Start 2026.04.02 @ 13:41:08 End 2026.04.02 @ 13:50:31 Sessions 1 Manual Loads 0 Difficulty Rogue Special Mode None Game No. 53 Rogue 53 Adventurer 0 Explorer 0 Win Type - Total 0 Types 0/0/0/0/0/0/0/0/0/0 Lore% 24 Gallery% 31 Achievement% 21 Wizard Run 0 Options --------- Layout 1 ASCII 0 Keyboard 0 Movement Arrows Keybinds 0 Fullscreen 2 Font 24/Terminus Map View 50x35 Zoom Use 0% Tactical HUD 1 Map Filters NONE Filters NONE Steam 1 RUN: 23aa0473-c744-452d-9ccf-567dd630f696